[Event "Titled Tuesday Blitz January 17 Late 2023"]
[White "Solon, Nathan"]
[Black "Remizov, Yaroslav"]
[WhiteFideId "2017229"]
[BlackFideId "34134015"]
[WhiteElo "2306"]
[BlackElo "2421"]
[Result "0-1"]
[Round "03"]
[TimeControl "180+2"]
[Date "2023.01.17"]
[WhiteClock "0:00:02"]
[BlackClock "0:00:09"]

1. Nf3 {[%clk 0:03:00]}  d5 {[%clk 0:02:58]} 2. g3 {[%clk 0:03:00]}  Bg4 {[%clk 0:02:56]} 3. Bg2 {[%clk 0:03:00]}  Nd7 {[%clk 0:02:56]} 4. d4 {[%clk 0:02:55]}  Ngf6 {[%clk 0:02:56]} 5. h3 {[%clk 0:02:52]}  Bxf3 {[%clk 0:02:50]} 6. exf3 {[%clk 0:02:52]}  g6 {[%clk 0:02:41]} 7. f4 {[%clk 0:02:51]}  Bg7 {[%clk 0:02:41]} 8. O-O {[%clk 0:02:50]}  O-O {[%clk 0:02:40]} 9. Nd2 {[%clk 0:02:47]}  c5 {[%clk 0:02:39]} 10. Nf3 {[%clk 0:02:40]}  Rc8 {[%clk 0:02:33]} 11. c3 {[%clk 0:02:38]}  e6 {[%clk 0:02:31]} 12. Be3 {[%clk 0:02:35]}  Qb6 {[%clk 0:02:28]} 13. Qe2 {[%clk 0:02:33]}  cxd4 {[%clk 0:02:19]} 14. Bxd4 {[%clk 0:02:32]}  Qa5 {[%clk 0:02:17]} 15. Ne5 {[%clk 0:02:27]}  Nxe5 {[%clk 0:02:14]} 16. fxe5 {[%clk 0:02:23]}  Nd7 {[%clk 0:02:13]} 17. f4 {[%clk 0:02:23]}  Nb8 {[%clk 0:01:57]} 18. h4 {[%clk 0:02:08]}  Nc6 {[%clk 0:01:50]} 19. Rfd1 {[%clk 0:01:34]}  Nxd4 {[%clk 0:01:32]} 20. Rxd4 {[%clk 0:01:35]}  Rfd8 {[%clk 0:01:29]} 21. Kh2 {[%clk 0:01:29]}  b5 {[%clk 0:01:23]} 22. h5 {[%clk 0:01:25]}  Qb6 {[%clk 0:01:21]} 23. a4 {[%clk 0:01:20]}  a6 {[%clk 0:01:20]} 24. axb5 {[%clk 0:01:18]}  axb5 {[%clk 0:01:20]} 25. Bf1 {[%clk 0:01:16]}  Rc4 {[%clk 0:01:17]} 26. Qf2 {[%clk 0:01:09]}  Ra4 {[%clk 0:01:04]} 27. Rad1 {[%clk 0:01:03]}  Bf8 {[%clk 0:00:59]} 28. Qe2 {[%clk 0:00:55]}  Bc5 {[%clk 0:00:54]} 29. R4d3 {[%clk 0:00:42]}  Rda8 {[%clk 0:00:43]} 30. Bh3 {[%clk 0:00:41]}  b4 {[%clk 0:00:40]} 31. cxb4 {[%clk 0:00:34]}  Rxb4 {[%clk 0:00:40]} 32. R3d2 {[%clk 0:00:26]}  Ra2 {[%clk 0:00:39]} 33. Rb1 {[%clk 0:00:23]}  Rb3 {[%clk 0:00:36]} 34. Rc2 {[%clk 0:00:20]}  Kg7 {[%clk 0:00:34]} 35. Qd2 {[%clk 0:00:11]}  Be3 {[%clk 0:00:30]} 36. Qe2 {[%clk 0:00:10]}  Bd4 {[%clk 0:00:22]} 37. hxg6 {[%clk 0:00:06]}  hxg6 {[%clk 0:00:22]} 38. Bg4 {[%clk 0:00:06]}  Rbxb2 {[%clk 0:00:15]} 39. Rcxb2 {[%clk 0:00:06]}  Rxb2 {[%clk 0:00:16]} 40. Rxb2 {[%clk 0:00:06]}  Bxb2 {[%clk 0:00:17]} 41. Bf3 {[%clk 0:00:06]}  Bd4 {[%clk 0:00:15]} 42. Kg2 {[%clk 0:00:06]}  Qb1 {[%clk 0:00:15]} 43. Bg4 {[%clk 0:00:05]}  Qg1+ {[%clk 0:00:14]} 44. Kf3 {[%clk 0:00:05]}  Qh1+ {[%clk 0:00:14]} 45. Qg2 {[%clk 0:00:06]}  Qd1+ {[%clk 0:00:14]} 46. Qe2 {[%clk 0:00:06]}  Qb1 {[%clk 0:00:14]} 47. Kg2 {[%clk 0:00:05]}  Qg1+ {[%clk 0:00:14]} 48. Kf3 {[%clk 0:00:06]}  Bc5 {[%clk 0:00:14]} 49. Bh3 {[%clk 0:00:04]}  d4 {[%clk 0:00:12]} 50. Bf1 {[%clk 0:00:03]}  Qh1+ {[%clk 0:00:12]} 51. Bg2 {[%clk 0:00:03]}  Qc1 {[%clk 0:00:11]} 52. Qd3 {[%clk 0:00:03]}  Qa1 {[%clk 0:00:09]} 53. Bf1 {[%clk 0:00:04]}  Bb4 {[%clk 0:00:09]} 54. Be2 {[%clk 0:00:04]}  Be1 {[%clk 0:00:09]} 55. Bf1 {[%clk 0:00:05]}  Qb2 {[%clk 0:00:06]} 56. Be2 {[%clk 0:00:04]}  Bc3 {[%clk 0:00:07]} 57. g4 {[%clk 0:00:05]}  Qc1 {[%clk 0:00:07]} 58. f5 {[%clk 0:00:04]}  exf5 {[%clk 0:00:07]} 59. gxf5 {[%clk 0:00:05]}  gxf5 {[%clk 0:00:07]} 60. Kg2 {[%clk 0:00:05]}  Qg5+ {[%clk 0:00:07]} 61. Kf3 {[%clk 0:00:04]}  Qg4+ {[%clk 0:00:07]} 62. Kf2 {[%clk 0:00:04]}  Qf4+ {[%clk 0:00:07]} 63. Kg2 {[%clk 0:00:04]}  Qxe5 {[%clk 0:00:07]} 64. Qg3+ {[%clk 0:00:04]}  Kf6 {[%clk 0:00:08]} 65. Qxe5+ {[%clk 0:00:04]}  Kxe5 {[%clk 0:00:09]} 66. Kf3 {[%clk 0:00:05]}  Bd2 {[%clk 0:00:07]} 67. Bd3 {[%clk 0:00:06]}  f4 {[%clk 0:00:07]} 68. Bc2 {[%clk 0:00:05]}  Kd5 {[%clk 0:00:07]} 69. Bd3 {[%clk 0:00:06]}  Kc5 {[%clk 0:00:07]} 70. Ke4 {[%clk 0:00:06]}  Be3 {[%clk 0:00:07]} 71. Be2 {[%clk 0:00:06]}  Kb4 {[%clk 0:00:07]} 72. Bd3 {[%clk 0:00:06]}  Kc3 {[%clk 0:00:07]} 73. Be2 {[%clk 0:00:07]}  d3 {[%clk 0:00:07]} 74. Bxd3 {[%clk 0:00:07]}  f5+ {[%clk 0:00:07]} 75. Kxf5 {[%clk 0:00:02]}  Kxd3 {[%clk 0:00:08]} 76. Kg4 {[%clk 0:00:02]}  Ke2 {[%clk 0:00:09]} 0-1


[Site "https://www.chess.com"]

[Event "Titled Tuesday Blitz January 17 Late 2023"]
[White "Ozer, Omer Faruk"]
[Black "Kadric, Denis"]
[WhiteFideId "6354564"]
[BlackFideId "14403803"]
[WhiteElo "2360"]
[BlackElo "2601"]
[Result "1-0"]
[Round "03"]
[TimeControl "180+2"]
[Date "2023.01.17"]
[WhiteClock "0:01:27"]
[BlackClock "0:01:22"]

1. e4 {[%clk 0:03:00]}  d6 {[%clk 0:03:00]} 2. d4 {[%clk 0:03:00]}  Nf6 {[%clk 0:02:59]} 3. Nc3 {[%clk 0:03:01]}  e5 {[%clk 0:02:59]} 4. Nf3 {[%clk 0:02:59]}  Nbd7 {[%clk 0:02:59]} 5. Bc4 {[%clk 0:03:00]}  Be7 {[%clk 0:02:58]} 6. a4 {[%clk 0:03:00]}  O-O {[%clk 0:02:58]} 7. O-O {[%clk 0:03:00]}  c6 {[%clk 0:02:58]} 8. Qe2 {[%clk 0:02:58]}  exd4 {[%clk 0:02:58]} 9. Nxd4 {[%clk 0:02:58]}  Re8 {[%clk 0:02:58]} 10. Ba2 {[%clk 0:02:42]}  Bf8 {[%clk 0:02:58]} 11. Qf3 {[%clk 0:02:09]}  Ne5 {[%clk 0:02:53]} 12. Qg3 {[%clk 0:02:09]}  Nh5 {[%clk 0:02:52]} 13. Qg5 {[%clk 0:02:06]}  Nf6 {[%clk 0:02:39]} 14. Rd1 {[%clk 0:02:03]}  h6 {[%clk 0:02:31]} 15. Qh4 {[%clk 0:02:01]}  Qa5 {[%clk 0:01:57]} 16. f3 {[%clk 0:01:50]}  Bd7 {[%clk 0:01:50]} 17. Bxh6 {[%clk 0:01:39]}  d5 {[%clk 0:01:26]} 18. Bg5 {[%clk 0:01:36]}  Ng6 {[%clk 0:01:27]} 19. Qf2 {[%clk 0:01:29]}  dxe4 {[%clk 0:01:21]} 20. Bxf6 {[%clk 0:01:30]}  e3 {[%clk 0:01:22]} 21. Qg3 {[%clk 0:01:27]} 1-0


[Site "https://www.chess.com"]

[Event "Titled Tuesday Blitz January 17 Late 2023"]
[White "Liang, Justin"]
[Black "Mikaelyan, Arman"]
[WhiteFideId "2099942"]
[BlackFideId "13304852"]
[WhiteElo "2052"]
[BlackElo "2523"]
[Result "1-0"]
[Round "03"]
[TimeControl "180+2"]
[Date "2023.01.17"]
[WhiteClock "0:00:02"]
[BlackClock "0:00:04"]

1. d4 {[%clk 0:02:48]}  Nf6 {[%clk 0:02:59]} 2. c4 {[%clk 0:02:41]}  e6 {[%clk 0:02:58]} 3. Nf3 {[%clk 0:02:41]}  d5 {[%clk 0:02:58]} 4. g3 {[%clk 0:02:38]}  Be7 {[%clk 0:02:50]} 5. Bg2 {[%clk 0:02:35]}  O-O {[%clk 0:02:50]} 6. O-O {[%clk 0:02:35]}  c6 {[%clk 0:02:50]} 7. Qc2 {[%clk 0:02:35]}  Nbd7 {[%clk 0:02:51]} 8. b3 {[%clk 0:02:34]}  b6 {[%clk 0:02:51]} 9. Bb2 {[%clk 0:02:33]}  Bb7 {[%clk 0:02:51]} 10. Nbd2 {[%clk 0:02:33]}  Rc8 {[%clk 0:02:48]} 11. Rac1 {[%clk 0:02:33]}  c5 {[%clk 0:02:48]} 12. Qb1 {[%clk 0:02:24]}  dxc4 {[%clk 0:02:42]} 13. Nxc4 {[%clk 0:02:23]}  b5 {[%clk 0:02:41]} 14. Ne3 {[%clk 0:02:11]}  cxd4 {[%clk 0:02:31]} 15. Nxd4 {[%clk 0:02:00]}  Bxg2 {[%clk 0:02:30]} 16. Kxg2 {[%clk 0:02:00]}  Qb6 {[%clk 0:02:28]} 17. Rfd1 {[%clk 0:01:47]}  Bc5 {[%clk 0:02:20]} 18. Qa1 {[%clk 0:01:35]}  Rfd8 {[%clk 0:02:15]} 19. a3 {[%clk 0:01:32]}  a5 {[%clk 0:02:14]} 20. a4 {[%clk 0:01:32]}  bxa4 {[%clk 0:02:12]} 21. Qxa4 {[%clk 0:01:19]}  h6 {[%clk 0:02:08]} 22. Nc4 {[%clk 0:01:17]}  Qb7+ {[%clk 0:02:05]} 23. f3 {[%clk 0:01:17]}  Nd5 {[%clk 0:01:52]} 24. e4 {[%clk 0:01:03]}  N7b6 {[%clk 0:01:35]} 25. Qb5 {[%clk 0:00:53]}  Nxc4 {[%clk 0:01:05]} 26. Qxb7 {[%clk 0:00:46]}  Nde3+ {[%clk 0:01:06]} 27. Kh3 {[%clk 0:00:44]}  Nxd1 {[%clk 0:00:51]} 28. Nc6 {[%clk 0:00:29]}  Nf2+ {[%clk 0:00:50]} 29. Kg2 {[%clk 0:00:29]}  Ne3+ {[%clk 0:00:45]} 30. Kxf2 {[%clk 0:00:26]}  Ng4+ {[%clk 0:00:26]} 31. Kg2 {[%clk 0:00:07]}  Rd2+ {[%clk 0:00:24]} 32. Kh3 {[%clk 0:00:08]}  Nf2+ {[%clk 0:00:24]} 33. Kh4 {[%clk 0:00:08]}  Rf8 {[%clk 0:00:17]} 34. Bxg7 {[%clk 0:00:07]}  Be3 {[%clk 0:00:06]} 35. Bf6 {[%clk 0:00:02]}  Nxe4 {[%clk 0:00:07]} 36. Ne7+ {[%clk 0:00:02]}  Kh7 {[%clk 0:00:04]} 37. Qxe4# {[%clk 0:00:02]} 1-0


[Site "https://www.chess.com"]

[Event "Titled Tuesday Blitz January 17 Late 2023"]
[White "Bernadskiy, Vitaliy"]
[Black "Prado Lobo, Jonas"]
[WhiteFideId "14100371"]
[BlackFideId "32050666"]
[WhiteElo "2592"]
[BlackElo "2313"]
[Result "1-0"]
[Round "03"]
[TimeControl "180+2"]
[Date "2023.01.17"]
[WhiteClock "0:00:46"]
[BlackClock "0:00:08"]

1. e4 {[%clk 0:03:00]}  e5 {[%clk 0:02:59]} 2. Nf3 {[%clk 0:02:59]}  Nc6 {[%clk 0:02:59]} 3. Bb5 {[%clk 0:02:59]}  a6 {[%clk 0:02:56]} 4. Ba4 {[%clk 0:02:59]}  Nf6 {[%clk 0:02:53]} 5. O-O {[%clk 0:02:59]}  b5 {[%clk 0:02:53]} 6. Bb3 {[%clk 0:02:59]}  Bc5 {[%clk 0:02:54]} 7. a4 {[%clk 0:02:59]}  Rb8 {[%clk 0:02:48]} 8. c3 {[%clk 0:02:58]}  d6 {[%clk 0:02:45]} 9. d4 {[%clk 0:02:58]}  Bb6 {[%clk 0:02:46]} 10. a5 {[%clk 0:02:58]}  Ba7 {[%clk 0:02:40]} 11. h3 {[%clk 0:02:57]}  O-O {[%clk 0:02:40]} 12. Be3 {[%clk 0:02:57]}  exd4 {[%clk 0:02:17]} 13. cxd4 {[%clk 0:02:56]}  d5 {[%clk 0:02:13]} 14. e5 {[%clk 0:02:36]}  Ne4 {[%clk 0:02:13]} 15. Nc3 {[%clk 0:02:21]}  Be6 {[%clk 0:01:53]} 16. Ne2 {[%clk 0:02:09]}  Ne7 {[%clk 0:01:43]} 17. Nd2 {[%clk 0:02:03]}  Rc8 {[%clk 0:01:14]} 18. Nxe4 {[%clk 0:01:40]}  dxe4 {[%clk 0:01:15]} 19. d5 {[%clk 0:01:37]}  Bxe3 {[%clk 0:01:02]} 20. dxe6 {[%clk 0:01:36]}  Bc5 {[%clk 0:00:52]} 21. exf7+ {[%clk 0:01:35]}  Kh8 {[%clk 0:00:52]} 22. Nf4 {[%clk 0:01:31]}  Ng6 {[%clk 0:00:48]} 23. Ne6 {[%clk 0:01:24]}  Qe7 {[%clk 0:00:46]} 24. Nxf8 {[%clk 0:01:23]}  Rxf8 {[%clk 0:00:46]} 25. e6 {[%clk 0:01:22]}  Nf4 {[%clk 0:00:42]} 26. Qg4 {[%clk 0:01:20]}  Qf6 {[%clk 0:00:37]} 27. Rae1 {[%clk 0:00:58]}  Nd3 {[%clk 0:00:34]} 28. Re2 {[%clk 0:00:55]}  e3 {[%clk 0:00:09]} 29. fxe3 {[%clk 0:00:52]}  Qe5 {[%clk 0:00:08]} 30. Qf5 {[%clk 0:00:47]}  Bxe3+ {[%clk 0:00:08]} 31. Kh1 {[%clk 0:00:46]}  Qg3 {[%clk 0:00:08]} 32. Qxd3 {[%clk 0:00:46]} 1-0


[Site "https://www.chess.com"]

[Event "Titled Tuesday Blitz January 17 Late 2023"]
[White "Rangel, Daniel"]
[Black "Holt, Conrad"]
[WhiteFideId "2124475"]
[BlackFideId "2034387"]
[WhiteElo "2207"]
[BlackElo "2540"]
[Result "0-1"]
[Round "03"]
[TimeControl "180+2"]
[Date "2023.01.17"]
[WhiteClock "0:00:01"]
[BlackClock "0:00:07"]

1. c4 {[%clk 0:03:00]}  c6 {[%clk 0:02:58]} 2. g3 {[%clk 0:02:58]}  d5 {[%clk 0:02:58]} 3. Bg2 {[%clk 0:02:58]}  dxc4 {[%clk 0:02:59]} 4. a4 {[%clk 0:02:57]}  e5 {[%clk 0:02:58]} 5. Na3 {[%clk 0:02:56]}  Be6 {[%clk 0:02:56]} 6. Qc2 {[%clk 0:02:50]}  Bxa3 {[%clk 0:02:51]} 7. Rxa3 {[%clk 0:02:51]}  Nf6 {[%clk 0:02:49]} 8. Nf3 {[%clk 0:02:48]}  Bd5 {[%clk 0:02:36]} 9. O-O {[%clk 0:02:44]}  Nbd7 {[%clk 0:02:32]} 10. Qf5 {[%clk 0:02:19]}  Be4 {[%clk 0:02:20]} 11. Qg5 {[%clk 0:02:19]}  h6 {[%clk 0:02:20]} 12. Qe3 {[%clk 0:02:12]}  O-O {[%clk 0:01:48]} 13. Qc3 {[%clk 0:01:27]}  Bd5 {[%clk 0:01:32]} 14. Re1 {[%clk 0:01:04]}  Re8 {[%clk 0:01:27]} 15. Qc2 {[%clk 0:00:54]}  e4 {[%clk 0:01:23]} 16. Nd4 {[%clk 0:00:46]}  Qa5 {[%clk 0:01:04]} 17. Nf5 {[%clk 0:00:43]}  Nb6 {[%clk 0:00:47]} 18. Nd6 {[%clk 0:00:27]}  Re7 {[%clk 0:00:46]} 19. Nf5 {[%clk 0:00:27]}  Rd7 {[%clk 0:00:38]} 20. Qc3 {[%clk 0:00:27]}  Qxc3 {[%clk 0:00:30]} 21. bxc3 {[%clk 0:00:25]}  a5 {[%clk 0:00:26]} 22. Bb2 {[%clk 0:00:20]}  g6 {[%clk 0:00:16]} 23. Ne3 {[%clk 0:00:17]}  Be6 {[%clk 0:00:16]} 24. Nf1 {[%clk 0:00:14]}  Re7 {[%clk 0:00:09]} 25. Rb1 {[%clk 0:00:15]}  Bd7 {[%clk 0:00:08]} 26. Ra2 {[%clk 0:00:14]}  c5 {[%clk 0:00:07]} 27. Ba3 {[%clk 0:00:14]}  Nxa4 {[%clk 0:00:06]} 28. Ne3 {[%clk 0:00:12]}  b5 {[%clk 0:00:05]} 29. Bc1 {[%clk 0:00:11]}  b4 {[%clk 0:00:05]} 30. Nxc4 {[%clk 0:00:10]}  Be6 {[%clk 0:00:03]} 31. d3 {[%clk 0:00:09]}  Bxc4 {[%clk 0:00:03]} 32. dxc4 {[%clk 0:00:09]}  Nxc3 {[%clk 0:00:04]} 33. Rab2 {[%clk 0:00:09]}  Nxb1 {[%clk 0:00:04]} 34. Rxb1 {[%clk 0:00:10]}  a4 {[%clk 0:00:05]} 35. Bxh6 {[%clk 0:00:10]}  a3 {[%clk 0:00:05]} 36. Bg5 {[%clk 0:00:10]}  Re6 {[%clk 0:00:06]} 37. Ra1 {[%clk 0:00:11]}  b3 {[%clk 0:00:06]} 38. Bc1 {[%clk 0:00:09]}  a2 {[%clk 0:00:06]} 39. Bb2 {[%clk 0:00:09]}  Rd8 {[%clk 0:00:06]} 40. Kf1 {[%clk 0:00:08]}  Rd2 {[%clk 0:00:06]} 41. Bc3 {[%clk 0:00:08]}  b2 {[%clk 0:00:06]} 42. Bxb2 {[%clk 0:00:02]}  Rxb2 {[%clk 0:00:07]} 43. e3 {[%clk 0:00:01]}  Rb1+ {[%clk 0:00:07]} 0-1


[Site "https://www.chess.com"]

[Event "Titled Tuesday Blitz January 17 Late 2023"]
[White "Boruchovsky, Avital"]
[Black "Bayo Milagro, Alvaro"]
[WhiteFideId "2800055"]
[BlackFideId "22275240"]
[WhiteElo "2539"]
[BlackElo "2287"]
[Result "1-0"]
[Round "03"]
[TimeControl "180+2"]
[Date "2023.01.17"]
[WhiteClock "0:01:21"]
[BlackClock "0:01:28"]

1. d4 {[%clk 0:03:00]}  Nf6 {[%clk 0:02:59]} 2. c4 {[%clk 0:03:00]}  g6 {[%clk 0:02:59]} 3. Nc3 {[%clk 0:03:00]}  Bg7 {[%clk 0:02:59]} 4. e4 {[%clk 0:03:00]}  d6 {[%clk 0:03:00]} 5. Be3 {[%clk 0:03:00]}  O-O {[%clk 0:03:00]} 6. Be2 {[%clk 0:03:00]}  Na6 {[%clk 0:03:00]} 7. f4 {[%clk 0:02:57]}  c5 {[%clk 0:03:00]} 8. d5 {[%clk 0:02:51]}  e6 {[%clk 0:03:00]} 9. Bf3 {[%clk 0:02:42]}  exd5 {[%clk 0:03:00]} 10. cxd5 {[%clk 0:02:43]}  Re8 {[%clk 0:02:58]} 11. Nge2 {[%clk 0:02:43]}  Nxe4 {[%clk 0:02:50]} 12. Bxe4 {[%clk 0:02:08]}  f5 {[%clk 0:02:49]} 13. O-O {[%clk 0:02:06]}  fxe4 {[%clk 0:02:49]} 14. Ng3 {[%clk 0:02:07]}  Bf5 {[%clk 0:02:45]} 15. Re1 {[%clk 0:02:05]}  Nb4 {[%clk 0:02:43]} 16. Re2 {[%clk 0:02:01]}  Bg4 {[%clk 0:02:40]} 17. Ncxe4 {[%clk 0:01:53]}  Bxe2 {[%clk 0:02:37]} 18. Qxe2 {[%clk 0:01:54]}  Nxd5 {[%clk 0:02:30]} 19. Qc4 {[%clk 0:01:52]}  Kh8 {[%clk 0:02:24]} 20. Qxd5 {[%clk 0:01:52]}  Bxb2 {[%clk 0:02:15]} 21. Nxd6 {[%clk 0:01:39]}  Qf6 {[%clk 0:01:55]} 22. Nge4 {[%clk 0:01:29]}  Qe6 {[%clk 0:01:33]} 23. Qxe6 {[%clk 0:01:28]}  Rxe6 {[%clk 0:01:34]} 24. Rb1 {[%clk 0:01:28]}  Bg7 {[%clk 0:01:27]} 25. Rxb7 {[%clk 0:01:23]}  Rd8 {[%clk 0:01:28]} 26. Nf7+ {[%clk 0:01:21]} 1-0


[Site "https://www.chess.com"]

[Event "Titled Tuesday Blitz January 17 Late 2023"]
[White "Kobalia, Mikhail"]
[Black "Harish, Neeraj"]
[WhiteFideId "4119150"]
[BlackFideId "30958130"]
[WhiteElo "2578"]
[BlackElo "2232"]
[Result "1-0"]
[Round "03"]
[TimeControl "180+2"]
[Date "2023.01.17"]
[WhiteClock "0:01:01"]
[BlackClock "0:00:05"]

1. e4 {[%clk 0:03:00]}  c5 {[%clk 0:02:59]} 2. Nf3 {[%clk 0:03:00]}  Nc6 {[%clk 0:02:59]} 3. Bb5 {[%clk 0:02:59]}  g6 {[%clk 0:02:58]} 4. Bxc6 {[%clk 0:02:58]}  dxc6 {[%clk 0:02:57]} 5. d3 {[%clk 0:02:58]}  Bg7 {[%clk 0:02:57]} 6. a4 {[%clk 0:02:57]}  a5 {[%clk 0:02:53]} 7. Nbd2 {[%clk 0:02:56]}  Nf6 {[%clk 0:02:49]} 8. Nc4 {[%clk 0:02:52]}  Nd7 {[%clk 0:02:39]} 9. O-O {[%clk 0:02:36]}  e5 {[%clk 0:02:38]} 10. Nd6+ {[%clk 0:02:35]}  Ke7 {[%clk 0:02:32]} 11. Nc4 {[%clk 0:02:06]}  Re8 {[%clk 0:02:27]} 12. Ne1 {[%clk 0:01:58]}  Kf8 {[%clk 0:02:16]} 13. f4 {[%clk 0:01:58]}  Kg8 {[%clk 0:02:16]} 14. Nd6 {[%clk 0:01:53]}  Re6 {[%clk 0:02:03]} 15. Nxc8 {[%clk 0:01:53]}  Rxc8 {[%clk 0:02:01]} 16. f5 {[%clk 0:01:53]}  Re8 {[%clk 0:02:01]} 17. b3 {[%clk 0:01:43]}  f6 {[%clk 0:00:50]} 18. Be3 {[%clk 0:01:39]}  b6 {[%clk 0:00:48]} 19. h4 {[%clk 0:01:33]}  Nf8 {[%clk 0:00:43]} 20. Qg4 {[%clk 0:01:32]}  Qd7 {[%clk 0:00:37]} 21. Qh3 {[%clk 0:01:30]}  Rc7 {[%clk 0:00:28]} 22. g4 {[%clk 0:01:28]}  gxf5 {[%clk 0:00:14]} 23. gxf5 {[%clk 0:01:26]}  Kh8 {[%clk 0:00:13]} 24. Nf3 {[%clk 0:01:17]}  Qf7 {[%clk 0:00:13]} 25. h5 {[%clk 0:01:12]}  Nd7 {[%clk 0:00:12]} 26. h6 {[%clk 0:01:10]}  Bf8 {[%clk 0:00:12]} 27. Kh2 {[%clk 0:01:10]}  Bd6 {[%clk 0:00:11]} 28. Rg1 {[%clk 0:01:10]}  Rg8 {[%clk 0:00:11]} 29. Rxg8+ {[%clk 0:01:08]}  Qxg8 {[%clk 0:00:11]} 30. Rg1 {[%clk 0:01:09]}  Qf8 {[%clk 0:00:10]} 31. Qh5 {[%clk 0:01:05]}  Nb8 {[%clk 0:00:10]} 32. Nh4 {[%clk 0:01:03]}  Qf7 {[%clk 0:00:06]} 33. Ng6+ {[%clk 0:01:03]}  hxg6 {[%clk 0:00:06]} 34. fxg6 {[%clk 0:01:03]}  Qe7 {[%clk 0:00:05]} 35. g7+ {[%clk 0:01:01]} 1-0


[Site "https://www.chess.com"]

[Event "Titled Tuesday Blitz January 17 Late 2023"]
[White "Riehle, Marco"]
[Black "Ibadov, Dashgyn"]
[WhiteFideId "12904392"]
[BlackFideId "24107514"]
[WhiteElo "2368"]
[BlackElo "2391"]
[Result "1-0"]
[Round "03"]
[TimeControl "180+2"]
[Date "2023.01.17"]
[WhiteClock "0:01:44"]
[BlackClock "0:00:01"]

1. e4 {[%clk 0:03:00]}  e5 {[%clk 0:02:59]} 2. Nf3 {[%clk 0:02:59]}  Nc6 {[%clk 0:02:59]} 3. Bc4 {[%clk 0:02:59]}  Bc5 {[%clk 0:02:59]} 4. c3 {[%clk 0:02:57]}  Nf6 {[%clk 0:02:59]} 5. d4 {[%clk 0:02:57]}  exd4 {[%clk 0:02:59]} 6. cxd4 {[%clk 0:02:57]}  Bb4+ {[%clk 0:03:00]} 7. Kf1 {[%clk 0:02:57]}  Nxe4 {[%clk 0:02:45]} 8. d5 {[%clk 0:02:57]}  Ne7 {[%clk 0:02:45]} 9. Qd4 {[%clk 0:02:57]}  Nf6 {[%clk 0:02:32]} 10. Bg5 {[%clk 0:02:55]}  Ng6 {[%clk 0:02:24]} 11. Bd3 {[%clk 0:02:50]}  Qe7 {[%clk 0:02:18]} 12. Nc3 {[%clk 0:02:46]}  Bc5 {[%clk 0:01:51]} 13. Qc4 {[%clk 0:02:43]}  O-O {[%clk 0:01:42]} 14. Re1 {[%clk 0:02:39]}  Qd6 {[%clk 0:01:39]} 15. Bxf6 {[%clk 0:02:39]}  Qxf6 {[%clk 0:01:18]} 16. Qxc5 {[%clk 0:02:39]}  Nf4 {[%clk 0:01:18]} 17. Bc2 {[%clk 0:02:35]}  d6 {[%clk 0:01:13]} 18. Qd4 {[%clk 0:02:32]}  Qh6 {[%clk 0:01:12]} 19. Ne2 {[%clk 0:02:26]}  Nxg2 {[%clk 0:01:08]} 20. Kxg2 {[%clk 0:02:24]}  Qh3+ {[%clk 0:01:03]} 21. Kg1 {[%clk 0:02:24]}  Qxf3 {[%clk 0:01:04]} 22. Qd3 {[%clk 0:02:21]}  Qg4+ {[%clk 0:00:57]} 23. Ng3 {[%clk 0:02:22]}  g6 {[%clk 0:00:55]} 24. h3 {[%clk 0:02:21]}  Qb4 {[%clk 0:00:53]} 25. Qc3 {[%clk 0:02:19]}  Qxc3 {[%clk 0:00:32]} 26. bxc3 {[%clk 0:02:20]}  Bd7 {[%clk 0:00:33]} 27. Re7 {[%clk 0:02:17]}  Rad8 {[%clk 0:00:31]} 28. Kg2 {[%clk 0:02:16]}  Rfe8 {[%clk 0:00:31]} 29. Rhe1 {[%clk 0:02:14]}  Rxe7 {[%clk 0:00:28]} 30. Rxe7 {[%clk 0:02:15]}  Kf8 {[%clk 0:00:29]} 31. Re1 {[%clk 0:02:13]}  Bb5 {[%clk 0:00:18]} 32. Rb1 {[%clk 0:02:08]}  Ba6 {[%clk 0:00:11]} 33. Ne4 {[%clk 0:02:05]}  b6 {[%clk 0:00:11]} 34. Re1 {[%clk 0:02:00]}  Bc4 {[%clk 0:00:10]} 35. Bb3 {[%clk 0:02:00]}  Ba6 {[%clk 0:00:10]} 36. h4 {[%clk 0:01:58]}  h5 {[%clk 0:00:10]} 37. Re3 {[%clk 0:01:56]}  Bb7 {[%clk 0:00:09]} 38. Kf3 {[%clk 0:01:54]}  a5 {[%clk 0:00:06]} 39. a4 {[%clk 0:01:53]}  Kg7 {[%clk 0:00:05]} 40. Ng5 {[%clk 0:01:53]}  Kf8 {[%clk 0:00:04]} 41. Kf4 {[%clk 0:01:52]}  Bc8 {[%clk 0:00:04]} 42. Kg3 {[%clk 0:01:48]}  Bd7 {[%clk 0:00:02]} 43. Bc2 {[%clk 0:01:48]}  Be8 {[%clk 0:00:01]} 44. c4 {[%clk 0:01:45]}  Kg7 {[%clk 0:00:01]} 45. Re7 {[%clk 0:01:44]} 1-0


[Site "https://www.chess.com"]

[Event "Titled Tuesday Blitz January 17 Late 2023"]
[White "Vlassov, Nikolai"]
[Black "Vifleemskaia, Svetlana"]
[WhiteFideId "4103360"]
[BlackFideId "4129490"]
[WhiteElo "2283"]
[BlackElo "1971"]
[Result "1-0"]
[Round "03"]
[TimeControl "180+2"]
[Date "2023.01.17"]
[WhiteClock "0:00:47"]
[BlackClock "0:00:24"]

1. e4 {[%clk 0:03:00]}  e5 {[%clk 0:02:59]} 2. Bc4 {[%clk 0:02:48]}  Nf6 {[%clk 0:02:58]} 3. d3 {[%clk 0:02:47]}  c6 {[%clk 0:02:57]} 4. Nf3 {[%clk 0:02:47]}  d5 {[%clk 0:02:56]} 5. Bb3 {[%clk 0:02:47]}  Nbd7 {[%clk 0:02:54]} 6. Nc3 {[%clk 0:02:37]}  Bb4 {[%clk 0:02:48]} 7. O-O {[%clk 0:02:32]}  O-O {[%clk 0:02:34]} 8. exd5 {[%clk 0:02:29]}  Bxc3 {[%clk 0:02:28]} 9. dxc6 {[%clk 0:02:28]}  bxc6 {[%clk 0:02:02]} 10. bxc3 {[%clk 0:02:28]}  h6 {[%clk 0:01:58]} 11. Re1 {[%clk 0:02:27]}  Re8 {[%clk 0:01:57]} 12. a4 {[%clk 0:02:18]}  a5 {[%clk 0:01:56]} 13. Ba3 {[%clk 0:02:13]}  Qc7 {[%clk 0:01:50]} 14. Nd2 {[%clk 0:02:00]}  Nb6 {[%clk 0:01:47]} 15. h3 {[%clk 0:01:57]}  Nbd5 {[%clk 0:01:45]} 16. Bb2 {[%clk 0:01:49]}  Rb8 {[%clk 0:01:42]} 17. Qf3 {[%clk 0:01:48]}  Nf4 {[%clk 0:01:30]} 18. Nc4 {[%clk 0:01:36]}  Ng6 {[%clk 0:01:23]} 19. Ba3 {[%clk 0:01:33]}  Rd8 {[%clk 0:01:14]} 20. Qg3 {[%clk 0:01:24]}  Nd5 {[%clk 0:00:53]} 21. Nxe5 {[%clk 0:00:57]}  Nxe5 {[%clk 0:00:51]} 22. Rxe5 {[%clk 0:00:57]}  Be6 {[%clk 0:00:36]} 23. Rxd5 {[%clk 0:00:50]}  Qxg3 {[%clk 0:00:27]} 24. Rxd8+ {[%clk 0:00:49]}  Rxd8 {[%clk 0:00:27]} 25. fxg3 {[%clk 0:00:50]}  Bxb3 {[%clk 0:00:27]} 26. cxb3 {[%clk 0:00:50]}  Rxd3 {[%clk 0:00:28]} 27. Rc1 {[%clk 0:00:48]}  Rxg3 {[%clk 0:00:27]} 28. b4 {[%clk 0:00:47]}  axb4 {[%clk 0:00:26]} 29. Bxb4 {[%clk 0:00:47]}  Rd3 {[%clk 0:00:24]} 30. a5 {[%clk 0:00:48]}  Rd2 {[%clk 0:00:24]} 31. Ra1 {[%clk 0:00:47]} 1-0


[Site "https://www.chess.com"]